bitfinex/quotes_ETHUSD_20240618
["timestamp","ask_amount","ask_price","bid_price","bid_amount"]
[1718683588498,1.39847005,3436.8,3436.1,2.3079]
[1718683589632,0.865,3436.4,3435.3,2.3239]
[1718683589928,1.62481706,3436.3,3435.3,3.1889]
[1718683590094,0.865,3436.4,3435.3,3.1889]
[1718683590095,1.39847005,3436.2,3435.5,0.865]
[1718683590297,1.39847005,3436.3,3435.5,0.865]
[1718683590684,1.39847005,3436.2,3435.4,0.865]
[1718683590975,1.39847005,3436.2,3435.5,0.36450183]
[1718683591476,1.39847005,3436.3,3435.5,0.36450183]
[1718683591680,6.87724546,3436.3,3435.0,2.3304]
[1718683591892,1.39894546,3435.9,3435.0,2.3304]
[1718683592171,1.19894546,3435.9,3435.0,2.3304]
[1718683592370,5.4783,3436.3,3435.0,2.3304]
[1718683592671,2.6631366,3436.2,3435.0,2.3304]
[1718683592977,2.1153066,3436.1,3435.0,2.3304]
[1718683593135,2.076,3435.8,3434.5,2.2673]
[1718683593341,2.076,3435.4,3433.8,2.2673]
[1718683593654,2.076,3435.4,3433.8,5.17951]
[1718683593655,2.11592356,3435.3,3433.8,5.17951]
[1718683593989,2.11592356,3435.3,3433.9,0.809189]
[1718683594278,2.076,3434.6,3433.3,2.3533]
[1718683594479,0.06405695,3434.5,3433.3,2.3533]
[1718683595444,0.06405695,3434.4,3433.3,2.3533]
[1718683595673,0.06405695,3434.8,3433.3,2.3533]
[1718683595880,0.06405695,3434.7,3433.3,2.3533]
[1718683596077,0.88446265,3434.7,3433.4,0.527208]
[1718683597647,0.06405695,3434.7,3433.5,0.05824578]
[1718683597887,0.06405695,3434.7,3433.6,2.4594]
[1718683598157,0.06405695,3434.7,3433.7,2.91227]
[1718683598454,3.06405695,3435.3,3433.7,2.91227]
[1718683598642,1.24704206,3435.2,3433.7,4.0010078]
[1718683598849,4.24704206,3435.2,3433.7,4.0010078]
[1718683599284,1.24704206,3435.2,3433.7,4.0010078]
[1718683600756,1.24704206,3435.2,3433.8,2.9122]
[1718683601291,4.31104206,3435.2,3433.7,1.0887378]
[1718683601488,1.16770421,3435.1,3433.7,1.0887378]
[1718683601675,0.06405695,3435.0,3433.7,1.0887378]
[1718683601877,0.06405695,3435.0,3433.6,2.4594]
[1718683602087,5.4866,3434.9,3433.2,0.006]
[1718683602270,3.06405695,3434.8,3433.2,0.006]
[1718683602473,0.06405695,3434.7,3433.2,0.006]
[1718683603356,0.06405695,3434.7,3433.4,2.91254]
[1718683603553,0.06405695,3434.7,3433.5,0.583126]
[1718683603952,0.06405695,3434.7,3433.2,0.006]
[1718683604161,3.12805695,3434.7,3433.2,0.006]
[1718683604463,3.064,3434.5,3433.2,0.006]
[1718683604677,0.06405695,3434.4,3433.2,0.006]
[1718683606294,2.3063,3434.3,3433.2,0.006]
[1718683606455,0.81509265,3434.2,3433.2,0.006]
[1718683608695,9.7359,3434.8,3433.3,5.25713]
[1718683608889,0.06405695,3434.7,3433.4,2.97079017]
[1718683609091,0.06405695,3434.7,3433.5,2.91244]
[1718683609304,0.06405695,3434.7,3433.6,0.88101317]
[1718683609658,0.06405695,3434.7,3433.7,2.91229]
[1718683609864,0.06405695,3435.0,3433.8,3.0]
[1718683610068,0.06405695,3435.0,3433.8,5.91214]
[1718683610383,0.06405695,3435.0,3433.9,2.91211]
[1718683610615,0.06405695,3435.0,3434.0,0.591211]
[1718683611272,0.06405695,3435.0,3433.6,0.82277302]
[1718683612359,7.4075,3434.9,3433.2,2.91871]
[1718683612618,3.06405695,3434.8,3433.3,3.0]
[1718683612913,0.06405695,3434.7,3433.3,3.0]
[1718683613389,1.46355855,3434.7,3433.3,3.0]
[1718683615378,1.3995016,3434.6,3433.3,3.0]
[1718683615584,0.51041281,3434.5,3433.4,0.591871]
[1718683616380,1.90991441,3434.5,3433.4,0.591871]
[1718683617426,1.3995016,3434.4,3433.4,0.591871]
[1718683617717,0.06405695,3434.3,3433.4,0.591871]
[1718683617882,1.3995016,3434.4,3433.4,0.591871]
[1718683617883,0.06405695,3434.2,3433.4,0.591871]
[1718683618321,1.3995016,3434.0,3433.2,0.006]
[1718683618635,1.3995016,3433.7,3433.2,0.006]
[1718683618921,0.06405695,3433.6,3433.2,0.006]
[1718683619433,1.46355855,3433.6,3433.2,0.006]
[1718683620188,0.06405695,3433.6,3433.2,0.006]
[1718683620429,1.46355855,3433.8,3433.2,0.006]
[1718683620723,1.6099144,3433.7,3433.2,0.006]
[1718683621410,1.3995016,3433.6,3433.2,0.006]
[1718683621610,0.2104128,3433.7,3433.2,0.006]
[1718683621611,1.46355855,3433.5,3433.2,0.006]
[1718683621926,0.14635585,3433.7,3433.2,0.006]
[1718683621927,1.3995016,3433.7,3433.2,0.006]
[1718683622429,1.3995016,3433.7,3433.2,2.9187]
[1718683622625,1.3995016,3433.7,3433.2,3.501859]
[1718683623597,1.3995016,3433.7,3433.3,2.91262]
[1718683623799,8.8295016,3434.1,3433.4,0.05824433]
[1718683623987,1.3995016,3434.1,3433.4,0.05824433]
[1718683624192,1.3995016,3434.2,3434.0,2.91205]
[1718683624411,1.3995016,3434.2,3434.1,0.291205]
[1718683624634,1.3995016,3434.4,3434.1,0.291205]
[1718683624931,1.3995016,3434.4,3434.0,2.91205]
[1718683625636,0.06405695,3434.3,3433.9,2.424]
[1718683625802,0.06405695,3434.3,3433.6,2.91238]
[1718683625803,1.46355855,3434.3,3433.6,2.91238]
[1718683626203,0.06405695,3434.3,3433.6,2.91238]
[1718683626399,1.3995815,3434.3,3433.7,0.828133]
[1718683626837,1.3995815,3434.3,3433.7,3.740433]
[1718683627125,1.3995815,3434.4,3433.7,3.740433]
[1718683627426,1.3995815,3434.4,3433.9,2.91211]
[1718683627628,1.3995815,3434.5,3434.0,0.37984825]
[1718683629334,1.2535815,3434.4,3433.9,2.91211]
[1718683629904,7.43,3434.9,3433.9,2.91211]
[1718683630102,0.06405695,3434.8,3433.9,2.91211]
[1718683630324,0.06405695,3434.8,3434.0,0.86992519]
[1718683630696,0.06405695,3434.8,3433.9,2.91211]
[1718683631196,0.5678845,3435.2,3433.9,2.91211]
[1718683631435,0.50382755,3435.1,3433.9,2.91211]
[1718683631726,0.5678845,3435.0,3433.9,2.91211]
[1718683631952,0.06405695,3435.0,3433.9,2.91211]
[1718683632305,0.5678845,3435.0,3433.9,2.91211]
[1718683632526,0.06405695,3434.9,3433.9,3.5773563]
[1718683632724,0.53185545,3435.0,3433.9,3.5773563]
[1718683632909,0.03405695,3434.9,3433.9,3.5773563]
[1718683633320,7.45301914,3434.8,3433.3,0.60311968]
[1718683633503,7.79430083,3434.7,3433.2,2.91872]
[1718683633704,3.064,3434.5,3433.2,0.006]
[1718683634013,0.03405695,3434.4,3433.2,2.91872]
[1718683634242,1.39977693,3433.9,3433.2,0.006]
[1718683634429,1.39977693,3433.9,3433.2,0.532406]
[1718683636443,1.43383388,3433.8,3433.2,0.532406]
[1718683636619,1.39977693,3433.7,3433.2,0.006]
[1718683636945,1.43389963,3433.6,3433.2,0.006]
[1718683639325,0.03405695,3433.6,3433.2,0.006]
[1718683639870,1.39988169,3433.7,3433.2,0.006]
[1718683640013,2.11658904,3433.6,3433.2,2.91873]
[1718683640350,2.11658904,3433.6,3433.3,0.291873]
[1718683640512,2.11658904,3433.6,3433.3,3.204483]
[1718683640711,1.39988169,3433.8,3433.3,3.204483]
[1718683640913,1.39988169,3433.9,3433.3,3.204483]
[1718683642049,1.39988169,3433.9,3433.3,0.291873]
[1718683643037,2.11644052,3433.8,3433.4,0.3210683]
[1718683644157,1.39976979,3434.1,3433.4,0.3210683]
[1718683644466,2.15040861,3434.0,3433.4,0.3210683]
[1718683644615,0.03405695,3434.0,3433.4,0.3210683]
[1718683645136,12.23,3435.0,3433.5,2.49654373]
[1718683645323,2.11615121,3434.4,3433.9,2.91213]
[1718683645531,0.50384638,3434.6,3434.0,2.97026412]
[1718683645745,2.11601592,3434.5,3434.1,2.91197]
[1718683645941,1.39957329,3434.8,3434.1,2.91197]
[1718683646216,2.15004648,3434.7,3434.2,2.2727]
[1718683646524,2.11598953,3434.6,3434.2,2.2727]
[1718683646951,1.39957329,3434.8,3434.2,2.2727]
[1718683647163,2.15003978,3434.7,3434.2,2.2727]
[1718683647336,2.11598283,3434.6,3434.2,2.2727]
[1718683647732,1.39957329,3434.8,3434.2,2.2727]
[1718683647933,2.15004252,3434.7,3434.2,2.2727]
[1718683648148,2.11598557,3434.6,3434.2,2.2727]
[1718683648637,1.39957329,3434.8,3434.2,2.2727]
[1718683648936,2.15005317,3434.7,3434.2,2.2727]
[1718683649138,2.11599622,3434.6,3434.2,2.2727]
[1718683649534,1.39957329,3434.8,3434.2,2.2727]
[1718683649734,2.15008176,3434.7,3434.2,2.2727]
[1718683649971,2.11602481,3434.6,3434.2,2.2727]
[1718683650343,1.39957329,3434.8,3434.2,2.2727]
[1718683650548,2.15008256,3434.7,3434.0,2.91203]
[1718683650752,2.11602561,3434.6,3434.0,3.731544]
[1718683651173,1.39957329,3434.8,3434.0,3.731544]
[1718683651340,2.15008354,3434.7,3434.0,3.731544]
[1718683651537,2.11602659,3434.6,3434.0,3.731544]
[1718683651873,2.11602659,3434.6,3434.0,0.819514]
[1718683652173,1.39957329,3434.7,3434.0,0.819514]
[1718683652350,2.11600353,3434.6,3433.9,2.91206]
[1718683652546,2.11600353,3434.6,3433.9,5.82412]
[1718683653061,2.11600353,3434.6,3434.0,2.91205]
[1718683653260,1.39957329,3434.7,3434.0,2.91205]
[1718683653460,2.11600361,3434.6,3434.0,2.91205]
[1718683654132,1.39957329,3434.7,3434.0,2.91205]
[1718683654349,2.1160039,3434.6,3433.8,2.3709]
[1718683654637,0.03405695,3434.5,3433.8,6.15997742]
[1718683655147,0.03405695,3434.6,3433.8,6.15997742]
[1718683656282,0.03405695,3434.6,3433.6,0.5730242]
[1718683656576,2.11611606,3434.5,3433.5,3.0]
[1718683656776,0.03405695,3434.4,3433.5,3.0]
[1718683657352,0.03405695,3434.4,3433.2,2.91866]
[1718683657353,1.39952596,3433.7,3433.2,0.006]
[1718683657557,2.15088105,3433.6,3433.2,0.006]
[1718683657882,1.40001594,3433.3,3433.2,0.006]
[1718683658067,2.33197122,3433.5,3433.2,0.006]
[1718683658068,1.40001594,3433.4,3433.2,0.006]
[1718683658379,1.43407289,3433.4,3433.2,0.006]
[1718683659061,1.43416983,3433.4,3433.2,0.006]
[1718683659448,0.03405695,3433.4,3433.2,0.006]
[1718683660256,0.19898274,3433.4,3433.2,0.006]
[1718683661084,1.40011288,3433.5,3433.2,0.006]
[1718683661287,0.03405695,3433.4,3433.2,0.006]
[1718683661985,0.03405695,3434.0,3433.2,0.006]
[1718683663589,1.43416763,3434.0,3433.2,0.006]
[1718683663750,2.38433744,3433.9,3433.2,0.006]
[1718683663951,0.03405695,3433.8,3433.2,0.006]
[1718683665483,1.43395888,3433.8,3433.2,0.006]
[1718683665725,0.03405695,3433.7,3433.2,0.006]
[1718683667576,0.03405695,3433.8,3433.2,0.006]
[1718683667899,0.03405695,3433.8,3433.3,0.291881]
[1718683668390,0.03405695,3433.8,3433.4,0.02545056]
[1718683668691,0.03405695,3434.1,3433.3,0.291881]
[1718683668989,0.03405695,3434.1,3433.5,0.02913771]
[1718683669190,0.03405695,3434.1,3433.2,0.006]
[1718683669575,0.03405695,3434.1,3433.3,0.02913771]
[1718683670278,0.03405695,3434.1,3433.4,2.3233]
[1718683670484,1.87735477,3434.1,3433.4,2.3233]
[1718683670804,1.87730172,3434.1,3433.5,0.02913771]
[1718683671481,0.47745284,3434.1,3433.5,0.02913771]
[1718683671678,0.03405695,3434.0,3433.5,0.02913771]
[1718683672707,0.03405695,3434.1,3433.5,0.02913771]
[1718683673412,0.03405695,3434.1,3433.5,0.55624348]
[1718683673775,0.03405695,3434.3,3433.5,0.55624348]
[1718683674212,0.03405695,3434.3,3433.5,3.46870348]
[1718683676613,0.03405695,3434.3,3433.5,0.02913771]
[1718683676782,1.39970295,3434.2,3433.5,0.02913771]
[1718683676994,0.03405695,3434.1,3433.5,0.02913771]
[1718683677194,0.03405695,3434.1,3433.3,2.4475]
[1718683677400,0.03405695,3434.1,3433.6,0.02905419]
[1718683677583,0.03405695,3434.1,3433.3,5.36014]
[1718683677785,0.03405695,3434.1,3433.7,0.02905419]
[1718683677996,0.03405695,3434.1,3433.3,6.188035]
[1718683678227,0.03405695,3434.1,3433.8,0.02905419]
[1718683678416,0.03405695,3434.1,3433.4,2.91255]
[1718683678617,0.03405695,3434.1,3433.5,0.536605]
[1718683679021,1.4337599,3434.3,3433.6,0.02905419]
[1718683679326,0.03405695,3434.2,3433.7,2.4677]
[1718683679487,0.03405695,3434.2,3433.7,2.49667069]
[1718683680989,1.4337599,3434.2,3433.7,2.49667069]
[1718683681521,0.03405695,3434.2,3433.7,2.49667069]
[1718683681727,1.39970295,3434.4,3433.7,2.49667069]
[1718683682026,1.39970295,3434.3,3433.7,2.49667069]
[1718683682188,1.09338931,3434.4,3433.8,2.91221]
[1718683682189,1.39970295,3434.4,3433.8,2.91221]
[1718683682504,1.39970295,3434.6,3433.9,0.02892894]
[1718683682686,0.03405695,3434.5,3433.9,0.02892894]
[1718683682883,0.03405695,3434.5,3433.9,3.45302289]
[1718683683123,0.03405695,3434.5,3434.0,2.94096894]
[1718683684537,1.39953583,3434.7,3434.0,0.02892894]
[1718683684735,1.39953583,3434.7,3434.2,2.91186]
[1718683684939,7.43,3435.0,3434.3,2.4987]
[1718683684940,1.39953583,3434.9,3434.3,2.4987]
[1718683685111,1.43359278,3434.9,3434.3,2.4987]
[1718683685319,1.43359278,3434.9,3434.4,0.02892894]
[1718683685530,0.03405695,3434.9,3434.4,0.02892894]
[1718683685728,0.03405695,3434.9,3434.4,0.63740719]
[1718683685932,1.39953583,3435.1,3434.5,2.91162]
[1718683686130,7.93383289,3435.5,3434.5,2.91162]
[1718683686131,1.39953583,3435.2,3434.5,2.91162]
[1718683686331,1.39953583,3435.4,3434.5,2.91162]
[1718683686510,1.43359278,3435.4,3434.6,0.02868227]
[1718683686839,0.03405695,3435.4,3434.6,0.02868227]
[1718683687417,0.03405695,3435.4,3434.7,2.91146]
[1718683688039,0.03405695,3435.5,3434.9,2.4225]
[1718683688341,1.39953583,3435.8,3435.0,0.02855708]
[1718683688510,0.03405695,3435.7,3435.0,0.02855708]
[1718683688706,0.03405695,3435.7,3435.0,0.08677876]
[1718683688924,1.39915533,3435.8,3435.1,2.9111]
[1718683689107,1.39915533,3435.8,3435.1,2.9395888]
[1718683689441,1.39915533,3436.2,3435.2,2.91102]
[1718683689630,0.03405695,3436.1,3435.4,2.91078]
[1718683690148,0.03405695,3436.1,3435.5,2.93852142]
[1718683690441,0.03405695,3436.1,3435.5,2.79252142]
[1718683690615,0.03405695,3436.3,3435.5,2.79252142]
[1718683691345,0.03405695,3436.3,3435.7,2.9106]
[1718683691547,0.03405695,3436.3,3435.8,5.31702]
[1718683691709,7.43,3436.9,3435.8,5.31702]
[1718683691710,0.03405695,3436.6,3435.8,5.31702]
[1718683691915,0.03405695,3436.8,3435.9,2.99631251]
[1718683692137,0.03405695,3436.8,3436.0,2.91035]
[1718683692512,0.03405695,3436.8,3436.1,0.02758595]
[1718683693031,0.03405695,3437.0,3436.1,0.02758595]
[1718683693213,0.24804569,3436.9,3436.1,0.02758595]
[1718683693409,0.03405695,3436.8,3436.1,0.02758595]
[1718683696421,0.03405695,3437.0,3436.1,0.02758595]
[1718683699411,0.03405695,3437.0,3436.1,2.93784595]
[1718683699616,0.03405695,3437.0,3436.1,0.02758595]
[1718683699841,0.03405695,3437.2,3436.1,0.5344506]
[1718683700051,0.03405695,3437.2,3436.2,0.02738125]
[1718683700363,0.03405695,3437.2,3436.5,2.90993]
[1718683700518,0.03405695,3437.3,3436.6,2.90984]
[1718683700719,7.43,3437.8,3436.8,2.90964]
[1718683700920,0.03405695,3437.7,3436.8,2.90964]
[1718683701463,0.03405695,3437.7,3436.9,0.02597226]
[1718683701818,0.03405695,3437.8,3436.9,2.93556226]
[1718683702035,0.2304257,3437.7,3436.9,2.93556226]
[1718683702244,0.03405695,3437.6,3437.0,2.9095]
[1718683702554,0.03405695,3437.6,3436.8,2.9096]
[1718683702860,0.03405695,3437.6,3437.1,0.02597226]
[1718683703061,0.03405695,3437.6,3436.8,2.9096]
[1718683703220,0.03405695,3437.6,3437.2,0.02597226]
[1718683703438,0.03405695,3437.6,3436.7,2.90974]
[1718683703660,0.03405695,3437.6,3437.3,0.02597226]
[1718683703990,0.03405695,3437.8,3436.8,0.05818514]
[1718683704145,0.03405695,3437.8,3437.4,0.02597226]
[1718683704345,0.03405695,3437.8,3437.0,2.90949]
[1718683704578,0.03405695,3437.8,3436.8,2.9096]
[1718683704579,0.26448265,3437.8,3436.8,2.9096]
[1718683704792,0.03405695,3437.7,3437.1,0.02597226]
[1718683704945,0.03405695,3437.7,3436.8,2.9096]
[1718683705149,0.03405695,3437.7,3437.2,0.02597226]
[1718683705376,0.03405695,3437.7,3436.8,2.9096]
[1718683705575,0.28752522,3437.7,3437.3,0.02597226]
[1718683705756,0.28752522,3437.7,3436.8,2.9096]
[1718683705982,0.28752522,3437.7,3437.4,0.02597226]
[1718683706207,0.28752522,3437.7,3436.8,2.9096]
[1718683706413,0.28752522,3437.7,3437.5,0.02597226]
[1718683706566,0.25577252,3437.6,3436.9,2.90959]
[1718683706773,0.03405695,3437.7,3437.6,0.02597226]
[1718683707154,0.03405695,3437.7,3436.9,2.90959]
[1718683707304,0.03405695,3437.7,3437.6,0.02597226]
[1718683707612,0.03405695,3437.7,3436.9,2.90959]
[1718683707815,0.03405695,3437.7,3437.6,0.02597226]
[1718683707984,0.26448265,3437.7,3436.9,2.90959]
[1718683708185,0.26448265,3437.7,3437.6,0.02597226]
[1718683708391,0.26448265,3437.7,3436.9,2.90959]
[1718683708703,0.26448265,3437.7,3437.6,0.02597226]
[1718683709008,2.4917,3437.6,3436.1,12.78851]
[1718683709204,0.03405695,3437.5,3436.1,5.35851]
[1718683709507,0.03405695,3437.5,3436.2,2.91018]
[1718683710002,0.03405695,3437.5,3436.5,2.90993]
[1718683710190,0.2525757,3437.4,3436.1,2.4483]
[1718683710395,0.03405695,3437.3,3436.1,2.4483]
[1718683710919,0.03405695,3437.3,3436.1,5.4483]
[1718683712388,0.03405695,3437.3,3436.1,8.35852]
[1718683712678,0.03405695,3437.3,3436.2,2.91019]
[1718683712896,0.1684898,3437.2,3436.2,2.91019]
[1718683713106,0.03405695,3437.1,3436.2,2.91019]
[1718683713270,2.3272,3437.0,3436.1,3.0]
[1718683713470,0.03405695,3436.9,3436.1,5.91026]
[1718683713790,0.03405695,3436.9,3436.1,3.0]
[1718683713990,0.27018265,3436.9,3435.9,2.91043]
[1718683714195,0.27018265,3436.9,3436.0,3.0]
[1718683715086,0.27018265,3436.9,3436.0,5.91035]
[1718683715974,0.03405695,3436.9,3436.1,2.91024]
[1718683716176,1.39826539,3437.1,3436.4,2.91001]
[1718683716413,2.4891,3437.3,3436.5,2.44679537]
[1718683716414,1.39826539,3437.3,3436.5,2.44679537]
[1718683716616,8.82826539,3437.5,3436.8,2.90968]
[1718683716909,0.03405695,3437.4,3436.8,2.90968]
[1718683717117,0.03405695,3437.4,3436.8,3.730492]
[1718683717810,0.03405695,3437.5,3436.8,3.730492]
[1718683718423,1.39834923,3437.4,3436.8,2.90968]
[1718683718615,2.47755695,3437.3,3436.2,2.91014]
[1718683718782,1.43240618,3437.2,3436.3,5.91009]
[1718683719199,1.39834923,3437.1,3436.3,5.91009]
[1718683719385,0.03405695,3437.0,3436.3,5.91009]
[1718683719579,0.03405695,3437.0,3436.3,7.083148]
[1718683720804,0.03405695,3437.0,3436.4,2.91]
[1718683721190,1.43240618,3437.0,3436.4,2.91]
[1718683721394,0.03405695,3437.0,3436.4,2.91]
[1718683721799,0.03405695,3437.0,3436.3,7.083158]
[1718683721992,0.03405695,3437.0,3436.3,5.9101]
[1718683722203,1.43240618,3437.0,3436.3,5.9101]
[1718683723810,1.39852935,3436.9,3436.3,5.9101]
[1718683724017,2.4435,3437.3,3436.3,5.9101]
[1718683724213,0.03405695,3437.2,3436.3,8.8202]
[1718683724423,0.03405695,3437.2,3436.4,2.91001]
[1718683725305,1.39852827,3436.9,3436.4,2.91001]
[1718683730601,1.39852827,3436.9,3436.6,2.90984]
[1718683730830,1.39852827,3436.9,3436.4,2.91001]
[1718683731736,1.39852827,3436.9,3436.5,2.90993]
[1718683732029,1.39852827,3436.9,3436.4,2.91001]
[1718683733322,1.39853736,3436.9,3436.4,2.91001]
[1718683734898,1.39853736,3436.9,3435.6,2.3672]
[1718683734899,1.39853736,3436.7,3435.8,5.30267]
[1718683735140,1.39853736,3436.5,3435.8,5.30267]
[1718683735437,1.43259431,3436.4,3435.8,5.30267]
[1718683735741,1.43281192,3436.4,3435.8,5.30267]
[1718683736315,1.39875497,3436.5,3435.9,2.91044]
[1718683736931,1.43281192,3436.4,3435.8,6.4758989]
[1718683737116,0.03405695,3436.4,3435.9,2.91042]
[1718683738540,1.39875497,3436.5,3436.0,2.96855259]
[1718683738702,1.39875497,3436.7,3436.2,2.91017]
[1718683738909,1.39875497,3436.8,3436.2,2.91017]
[1718683739400,1.39875497,3436.9,3436.2,2.91017]
[1718683739605,1.39875497,3436.9,3436.0,2.91035]
[1718683739798,1.39875497,3437.0,3436.4,2.90997]
[1718683740199,1.39875497,3436.9,3436.4,2.90997]
[1718683740398,0.03405695,3436.9,3436.4,2.90997]
[1718683740700,0.03405695,3436.9,3435.8,4.1732289]
[1718683740701,3.70405497,3436.8,3435.8,4.1732289]
[1718683740900,1.80662311,3436.7,3436.0,2.91035]
[1718683742237,0.40786814,3436.7,3436.0,2.91035]
[1718683742428,1.80651029,3436.7,3436.0,2.91035]
[1718683742802,0.40786814,3436.7,3436.0,2.91035]
[1718683743002,1.80651029,3436.7,3436.0,2.91035]
[1718683743538,1.80651029,3436.7,3435.8,5.91052]
[1718683743539,1.39861085,3436.9,3436.4,2.90998]
[1718683743743,0.5034999,3437.5,3436.5,0.05819319]
[1718683743744,1.39861085,3437.0,3436.5,0.05819319]
[1718683744038,1.90211075,3437.5,3437.0,2.9095]
[1718683744239,8.82861085,3437.6,3437.0,2.9095]
[1718683744406,8.82861085,3437.6,3437.1,2.90942]
[1718683744603,7.43,3437.6,3437.1,2.90942]
[1718683745038,0.03405695,3437.5,3436.9,5.40681]
[1718683745306,0.92032373,3437.5,3436.9,2.90951]
[1718683745535,0.03405695,3437.5,3436.9,2.90951]
[1718683746928,0.03405695,3437.5,3437.0,2.90951]
[1718683747443,0.03405695,3437.5,3436.7,2.90975]
[1718683747603,0.03405695,3437.5,3436.8,3.55]
[1718683748229,0.03405695,3437.5,3436.9,2.90959]
[1718683748810,0.03405695,3437.6,3436.9,2.90959]
[1718683750740,1.43238262,3437.6,3436.9,2.90959]
[1718683750929,0.03405695,3437.6,3436.9,2.90959]
[1718683751315,1.25232567,3437.7,3436.9,4.091244]
[1718683751752,2.2752,3438.0,3436.9,4.091244]
[1718683752044,2.2752,3438.0,3437.6,0.002]
[1718683753552,0.864,3437.9,3437.6,0.002]
[1718683756149,3.1777,3437.7,3437.6,0.002]
[1718683756516,6.2417,3437.7,3437.6,0.002]
[1718683756722,9.2417,3437.7,3437.6,0.002]
[1718683757351,8.3777,3437.7,3437.6,0.002]
[1718683757654,9.2417,3437.7,3437.6,0.002]
[1718683757817,9.67496172,3437.7,3437.6,0.002]
[1718683758151,10.53896172,3437.7,3437.6,0.002]
[1718683758355,11.04235896,3437.7,3437.6,0.002]
[1718683758714,10.53896172,3437.7,3437.6,0.002]
[1718683759518,9.67496172,3437.7,3437.6,0.002]
[1718683759925,2.3137,3437.7,3437.6,0.002]
[1718683761731,5.3777,3437.7,3437.6,0.002]
[1718683762223,8.3777,3437.7,3437.6,0.002]
[1718683763251,8.3757,3437.7,3437.6,0.002]
[1718683764673,5.3117,3437.7,3437.6,0.002]
[1718683765328,6.35677,3437.7,3437.6,0.002]
[1718683767123,3.0,3437.7,3437.6,0.002]
[1718683767331,5.84169724,3438.1,3437.6,0.002]
[1718683767529,3.0,3438.0,3437.7,0.002]
[1718683767758,0.88416972,3437.9,3437.7,0.002]
[1718683768355,5.3727,3437.8,3437.6,0.002]
[1718683769663,1.38766298,3437.9,3437.6,0.002]
[1718683769868,6.064,3438.0,3437.6,0.002]
[1718683771469,3.0,3438.0,3437.6,0.002]
[1718683771770,6.064,3438.1,3437.6,0.002]
[1718683772527,0.03,3438.0,3437.6,0.002]
[1718683776355,0.53349326,3438.0,3437.6,0.002]
[1718683776553,0.89936933,3437.9,3437.6,0.002]
[1718683779340,0.53349326,3438.0,3437.6,0.002]
[1718683779546,0.864,3437.8,3437.6,0.002]
[1718683780340,6.56742012,3438.1,3437.6,0.002]
[1718683780545,0.864,3437.8,3437.6,0.002]
[1718683781672,3.50341448,3438.1,3437.6,0.002]
[1718683781852,3.064,3438.4,3437.6,0.002]
[1718683781853,3.50341448,3438.3,3437.6,0.002]
[1718683782059,0.864,3437.9,3437.6,0.002]
[1718683782254,0.50341448,3438.2,3437.6,0.002]
[1718683782459,0.864,3437.8,3437.6,0.002]
[1718683784455,0.50341448,3438.2,3437.6,0.002]
[1718683785048,0.864,3437.9,3437.6,0.002]
[1718683785281,0.50341448,3438.2,3437.6,0.002]
[1718683785454,0.864,3438.0,3437.6,0.002]
[1718683786178,3.0,3438.3,3437.6,0.002]
[1718683786380,0.864,3438.0,3437.6,0.002]
[1718683787268,3.0,3438.3,3437.6,0.002]
[1718683787451,0.864,3438.1,3437.6,0.002]
[1718683787651,3.0,3438.4,3437.6,0.002]
[1718683787982,5.29,3438.5,3437.6,0.002]
[1718683788159,0.864,3438.1,3437.6,0.002]
[1718683788682,3.0,3438.4,3437.6,0.002]
[1718683789078,5.29,3438.5,3437.7,2.3353]
[1718683789273,0.864,3438.2,3437.7,2.3353]
[1718683789470,5.29,3438.5,3437.7,2.3353]
[1718683789658,0.864,3438.1,3437.7,2.3353]
[1718683789866,3.0,3438.4,3437.7,2.3353]
[1718683790065,5.29,3438.5,3437.7,2.3353]
[1718683790066,0.864,3438.1,3437.7,2.3353]
[1718683790693,3.0,3438.4,3437.7,2.3353]
[1718683790894,0.864,3438.3,3437.7,2.3353]
[1718683791787,2.29,3438.5,3437.7,2.56903]
[1718683792156,6.154,3438.5,3437.7,2.56903]
[1718683792654,5.29,3438.5,3437.7,2.56903]
[1718683794389,5.7932983,3438.5,3437.7,2.56903]
[1718683794710,2.7932983,3438.5,3437.7,2.56903]
[1718683794858,7.43,3438.6,3437.8,1.207503]
[1718683795373,7.43,3438.6,3437.9,2.3486]
[1718683795574,7.43,3438.6,3438.0,0.864]
[1718683796277,0.864,3438.9,3438.0,0.864]
[1718683796594,0.5032983,3439.0,3438.5,0.864]
[1718683796595,2.11352224,3438.8,3438.5,0.864]
[1718683796803,0.5032983,3439.0,3438.5,0.864]
[1718683797026,2.11336601,3438.9,3438.6,2.3012]
[1718683797175,7.9332983,3439.4,3438.7,0.23012]
[1718683797390,2.97733267,3439.3,3438.7,0.23012]
[1718683797619,2.11333267,3439.2,3438.6,2.3012]
[1718683797791,0.864,3439.1,3438.6,2.3012]
[1718683797988,2.11333267,3439.0,3438.6,2.3012]
[1718683799221,0.864,3438.9,3438.1,2.4111]
[1718683799382,2.11352829,3438.8,3438.1,2.4111]
[1718683799581,0.864,3438.9,3438.1,3.0638423]
[1718683800007,2.11356059,3438.8,3438.1,3.0638423]
[1718683800183,0.864,3439.1,3438.1,3.0638423]
[1718683800378,2.11346827,3439.0,3438.1,3.0638423]
[1718683802228,0.864,3438.6,3438.1,2.4111]
[1718683802702,7.43,3439.1,3438.1,2.4111]
[1718683802912,2.11363574,3439.0,3438.1,2.4111]
[1718683803221,2.11363574,3439.0,3438.1,5.31968]
[1718683803425,0.50321646,3439.4,3438.7,2.90805]
[1718683803737,7.43,3439.9,3439.3,0.864]
[1718683804037,7.43,3439.9,3439.5,2.3021]
[1718683804183,7.43,3440.4,3439.6,2.9073]
[1718683804381,7.43,3440.4,3439.7,0.811687]
[1718683804382,2.11276298,3440.3,3439.7,0.811687]
[1718683804586,2.11276298,3440.3,3439.5,2.3021]
[1718683804917,0.864,3439.9,3439.5,2.3021]
[1718683805223,0.864,3440.1,3439.5,2.3021]
[1718683805379,7.43,3440.4,3439.5,2.3021]
[1718683805584,5.11284475,3440.3,3439.5,2.3021]